Workbook

Sheet TOC
A1: Aldo Benini
A2: Combining binary indicators with the Betti-Verma aggregation method -
A3: An Excel implementation step-by-step
A5: Humanitarian analysts and poverty researchers may want to measure concepts like deprivation or protection risk by combining a number of indicators filled with survey data or expert judgments. The so-called "Betti-Verma double weighting rule" provides an aggregation method that penalizes redundant indicators and rewards informative ones. So far Excel users have not had convenient access to the procedure. Mainly because there was no readily available function for one of the technical ingredients, so-called tetrachoric correlations. This workbook implements Betti-Verma for binary indicators. It includes a new user-defined function for the tetrachoric correlation. Step-by-step demonstrations lead the users from simulated data to the Betti-Verma indicator weights and hence to the scores and summary statistics such as of a deprivation measure.
A7: Table of Contents
A8: What are tetrachoric correlations, and why do we need them?
B9: Rationale_Tetrachoric
B10: Textbook_Examples
B11: Two_situations
B12: Data
B13: Correlation_Tables
B14: Copy_Function_Code
A15: How does Betti-Verma function? How do I calculate weights and scores?
B16: Rationale_Betti_Verma
B17: B_V_weight_formulas
B18: Betti_Verma_weights
B19: Betti_Verma_scores
B20: Indices_compared
B21: Practicalities
A23: Version 1.0.; 7 April 2019
A24: aldobenini [at] gmail.com
A25: Deprecated 26 January 2020

Sheet Rationale_Tetrachoric
A1: Why tetrachoric correlations? And what are they?
A2: Indicator correlation pattern:
B3: When forming indices based on several indicators, it is necessary to inspect, besides the distribution of each indicator, their correlation pattern.
B4: Negative correlations may indicate one of several possibilities:
B5: 1. Random or systematic measurement error
B6: 2. The indicator was defined or coded in a manner opposite to the intention / substantive meaning of the index
B7: 3.Contrary to causal assumptions, the indicator in fact has a negative effect on the underlying construct.
B8: 4. The causal model is too simple; the effect may be positive within some or all subgroups (defined by some other variable), but is negative overall. The interaction needs to be modeled appropriately.
B9: Strong positive correlations may strengthen causal assumptions if the indicators stand for clearly distinct objects or processes. If they denote the same or widely overlapping objects (e.g., "three-stone stove" and "cooking fuel is wood"), they are redundant, and one or the other should be eliminated from the index, in order to avoid double-counting.
A11: Tetrachoric correlation:
B12: When the indicators are binary (coded 0/1), the "classic" correlation coefficient (Pearson-moment) (Excel function: CORREL) is not appropriate.
B13: The appropriate method is known as "tetrachoric correlation" (tetra-choric: "tetra-", prefix, derived from the Greek word for "four", alluding to the 2-by-2 table; "choric", from Greek "choros", a group of singers - thus an arrangement of four groups).
B14: Further explanations in sheet "Textbook_Examples"
B15: There are no convenient implementations of the tetrachoir correlation coefficent in MS Excel.
B16: This workbook provides VBA code for calculating the coefficient, although without standard errors, and demonstrates the actual making of the correlation table for multiple binary indicators.
B17: The so-called "Betti-Verma double-weighting method" is an important aggregation method in the construction of composite measures, particularly poverty and deprivation indices. When such an index is based on binary indicators, tetrachoric correlations are part of its mechanics.

Sheet Textbook_Examples
A1: Source: | B1: STATA BASE REFERENCE MANUAL, Release 15, StataCorp LLC, College Station, Texas, 2017.
A2: Pages 2810-11: | C2: tetrachoric — Tetrachoric correlations for binary variables
A51: Pages 2817-18:

Sheet Two_situations
A1: Different values, in spite of the same underlying data, between the "classic" (Pearson-moment) and the tetrachoric correlation coefficients. Two situations:
A2: Data are taken from the sheet "Data", the correlation coefficients form "Correlation_Tables":
B4: 1. All four value combinations have positive frequencies, e.g. between var6 and var8:
B5: Pivot table: | G5: Coefficients:
B6: Count of id | C6: var8
B7: var6 | C7: 0 | D7: 1 | E7: Grand Total | G7: Tetrachoric: | I7: =Correlation_Tables!I8 -> 0.6761338039
B8: 0 | C8: 10 | D8: 1 | E8: 11
B9: 1 | C9: 50 | D9: 39 | E9: 89 | G9: Pearson-moment: | I9: =Correlation_Tables!I22 -> 0.2218104231
B10: Grand Total | C10: 60 | D10: 40 | E10: 100
B11: The tetrachoric variant expresses the association between var6 and var8 more strongly.
B13: 2. One of the frequency cells is empty, e.g. between var6 and var7:
B14: Pivot table: | G14: Coefficients:
B15: Count of id | C15: var7
B16: var6 | C16: 0 | D16: 1 | E16: Grand Total | G16: Tetrachoric: | I16: =Correlation_Tables!H8 -> 1
B17: 0 | C17: 11 | D17: 0 | E17: 11
B18: 1 | C18: 40 | D18: 49 | E18: 89 | G18: Pearson-moment: | I18: =Correlation_Tables!H22 -> 0.3445992209
B19: Grand Total | C19: 51 | D19: 49 | E19: 100
B20: The tetrachoric variant takes n01 = 0 to mean that the positive association betw. var6 and var7 is maximal.
B21: The Pearson-moment variant lowers it on account of n10 = 40 > 0.

Sheet Data
A1: id | B1: var1 | C1: var2 | D1: var3 | E1: var4 | F1: var5 | G1: var6 | H1: var7 | I1: var8 | J1: var9 | K1: var10
A2: 1 | B2: 1 | C2: 0 | D2: 0 | E2: 1 | F2: 0 | G2: 1 | H2: 1 | I2: 1 | J2: 1 | K2: 1 | M2: n = 100
A3: 2 | B3: 1 | D3: 0 | E3: 1 | F3: 0 | G3: 1 | H3: 1 | I3: 1 | J3: 1 | K3: 1
A4: 3 | B4: 1 | D4: 1 | E4: 1 | F4: 1 | G4: 1 | H4: 1 | I4: 1 | J4: 1 | K4: 1
A5: 4 | B5: 1 | C5: 1 | D5: 0 | E5: 1 | F5: 0 | G5: 1 | H5: 1 | I5: 0 | J5: 1 | K5: 1
A6: 5 | B6: 1 | C6: 1 | D6: 0 | E6: 1 | F6: 1 | G6: 1 | H6: 1 | I6: 1 | J6: 1 | K6: 0
A7: 6 | B7: 0 | C7: 1 | D7: 1 | E7: 1 | F7: 0 | G7: 1 | H7: 1 | I7: 1 | J7: 1 | K7: 1
A8: 7 | B8: 0 | C8: 0 | D8: 1 | E8: 1 | F8: 0 | G8: 0 | H8: 0 | I8: 0 | J8: 0 | K8: 0
A9: 8 | B9: 1 | C9: 1 | D9: 0 | E9: 1 | F9: 0 | G9: 1 | H9: 1 | I9: 0 | J9: 1 | K9: 0
A10: 9 | B10: 1 | C10: 1 | D10: 1 | E10: 1 | F10: 1 | G10: 1 | H10: 1 | I10: 1 | J10: 1 | K10: 0
A11: 10 | B11: 0 | C11: 1 | D11: 1 | E11: 0 | F11: 0 | G11: 1 | H11: 0 | I11: 0 | J11: 1 | K11: 1
A12: 11 | B12: 0 | C12: 1 | D12: 0 | E12: 1 | F12: 0 | G12: 1 | H12: 0 | I12: 0 | J12: 1 | K12: 1
A13: 12 | B13: 0 | C13: 1 | D13: 1 | E13: 1 | F13: 0 | G13: 1 | H13: 0 | I13: 0 | J13: 0 | K13: 0
A14: 13 | B14: 0 | C14: 1 | D14: 1 | E14: 1 | F14: 0 | G14: 1 | H14: 1 | I14: 0 | J14: 1 | K14: 1
A15: 14 | B15: 0 | C15: 0 | D15: 1 | E15: 1 | F15: 0 | G15: 1 | H15: 0 | I15: 0 | J15: 0 | K15: 0
A16: 15 | B16: 1 | C16: 1 | D16: 1 | E16: 1 | F16: 0 | G16: 1 | H16: 0 | I16: 0 | J16: 0 | K16: 0
A17: 16 | B17: 1 | C17: 0 | D17: 0 | E17: 1 | F17: 1 | G17: 1 | H17: 1 | I17: 1 | J17: 1 | K17: 1
A18: 17 | B18: 0 | C18: 1 | D18: 0 | E18: 1 | F18: 1 | G18: 1 | H18: 0 | I18: 0 | J18: 1 | K18: 1
A19: 18 | B19: 0 | C19: 1 | D19: 1 | E19: 1 | F19: 0 | G19: 1 | H19: 0 | I19: 0 | J19: 1 | K19: 1
A20: 19 | B20: 0 | C20: 0 | D20: 1 | E20: 1 | F20: 0 | G20: 1 | H20: 0 | I20: 1 | J20: 1 | K20: 1
A21: 20 | B21: 1 | C21: 1 | D21: 1 | E21: 1 | F21: 1 | G21: 1 | H21: 0 | I21: 0 | J21: 0 | K21: 0
A22: 21 | B22: 0 | C22: 0 | D22: 1 | E22: 0 | F22: 0 | G22: 1 | H22: 0 | I22: 0 | J22: 0 | K22: 0
A23: 22 | B23: 1 | C23: 1 | D23: 0 | E23: 1 | F23: 1 | G23: 1 | H23: 0 | I23: 0 | J23: 0 | K23: 0
A24: 23 | B24: 1 | C24: 0 | D24: 1 | E24: 1 | F24: 0 | G24: 1 | H24: 1 | I24: 0 | J24: 0 | K24: 0
A25: 24 | B25: 1 | C25: 1 | D25: 1 | E25: 1 | F25: 0 | G25: 1 | H25: 0 | I25: 0 | J25: 1 | K25: 1
A26: 25 | B26: 1 | C26: 1 | D26: 1 | E26: 0 | F26: 1 | G26: 1 | H26: 1 | I26: 1 | J26: 1 | K26: 1
A27: 26 | B27: 1 | C27: 1 | D27: 0 | E27: 1 | F27: 0 | G27: 1 | H27: 0 | I27: 0 | J27: 1 | K27: 1
A28: 27 | B28: 1 | C28: 0 | D28: 1 | E28: 1 | F28: 1 | G28: 0 | H28: 0 | I28: 0 | J28: 0 | K28: 0
A29: 28 | B29: 0 | C29: 1 | D29: 0 | E29: 0 | F29: 1 | G29: 1 | H29: 1 | I29: 0 | J29: 0 | K29: 0
A30: 29 | B30: 1 | C30: 1 | D30: 0 | E30: 1 | F30: 0 | G30: 1 | H30: 1 | I30: 1 | J30: 1 | K30: 1
A31: 30 | B31: 0 | C31: 1 | D31: 0 | E31: 1 | F31: 1 | G31: 1 | H31: 1 | I31: 1 | J31: 1 | K31: 1
A32: 31 | B32: 0 | C32: 1 | D32: 0 | E32: 1 | F32: 1 | G32: 1 | H32: 1 | I32: 0 | J32: 1 | K32: 1
A33: 32 | B33: 1 | C33: 0 | D33: 1 | E33: 1 | F33: 1 | G33: 0 | H33: 0 | I33: 0 | J33: 1 | K33: 1
A34: 33 | B34: 1 | C34: 1 | D34: 0 | E34: 1 | F34: 0 | G34: 1 | H34: 1 | I34: 1 | J34: 1 | K34: 1
A35: 34 | B35: 1 | C35: 1 | D35: 1 | E35: 1 | F35: 0 | G35: 1 | H35: 0 | I35: 1 | J35: 1 | K35: 1
A36: 35 | B36: 1 | C36: 1 | D36: 1 | E36: 1 | F36: 1 | G36: 1 | H36: 1 | I36: 0 | J36: 1 | K36: 0
A37: 36 | B37: 1 | C37: 0 | D37: 0 | E37: 1 | F37: 1 | G37: 0 | H37: 0 | I37: 0 | J37: 1 | K37: 1
A38: 37 | B38: 1 | C38: 1 | D38: 0 | E38: 1 | F38: 1 | G38: 1 | H38: 1 | I38: 1 | J38: 1 | K38: 1
A39: 38 | B39: 1 | C39: 1 | D39: 1 | E39: 0 | F39: 0 | G39: 1 | H39: 1 | I39: 0 | J39: 1 | K39: 1
A40: 39 | B40: 1 | C40: 1 | D40: 0 | E40: 1 | F40: 0 | G40: 1 | H40: 1 | I40: 1 | J40: 1 | K40: 1
A41: 40 | B41: 0 | C41: 1 | D41: 0 | E41: 1 | F41: 0 | G41: 1 | H41: 0 | I41: 1 | J41: 1 | K41: 1
A42: 41 | B42: 0 | C42: 0 | D42: 1 | E42: 1 | F42: 0 | G42: 0 | H42: 0 | I42: 0 | J42: 0 | K42: 0
A43: 42 | B43: 1 | C43: 1 | D43: 1 | E43: 1 | F43: 1 | G43: 1 | H43: 0 | I43: 1 | J43: 1 | K43: 1
A44: 43 | B44: 0 | C44: 0 | D44: 1 | E44: 1 | F44: 0 | G44: 1 | H44: 0 | I44: 0 | J44: 0 | K44: 0
A45: 44 | B45: 1 | C45: 0 | D45: 1 | E45: 1 | F45: 0 | G45: 1 | H45: 0 | I45: 0 | J45: 0 | K45: 0
A46: 45 | B46: 1 | C46: 1 | D46: 0 | E46: 1 | F46: 0 | G46: 1 | H46: 0 | I46: 0 | J46: 1 | K46: 1
A47: 46 | B47: 1 | C47: 0 | D47: 0 | E47: 1 | F47: 0 | G47: 1 | H47: 0 | I47: 0 | J47: 1 | K47: 1
A48: 47 | B48: 0 | C48: 1 | D48: 0 | E48: 1 | F48: 0 | G48: 1 | H48: 1 | I48: 1 | J48: 1 | K48: 1
A49: 48 | B49: 1 | C49: 1 | D49: 1 | E49: 1 | F49: 1 | G49: 1 | H49: 1 | I49: 0 | J49: 1 | K49: 1
A50: 49 | B50: 1 | C50: 1 | D50: 0 | E50: 1 | F50: 1 | G50: 1 | H50: 0 | I50: 1 | J50: 1 | K50: 1
A51: 50 | B51: 1 | C51: 1 | D51: 0 | E51: 1 | F51: 0 | G51: 1 | H51: 1 | I51: 0 | J51: 1 | K51: 1
A52: 51 | B52: 1 | C52: 1 | D52: 0 | E52: 0 | F52: 0 | G52: 1 | H52: 1 | I52: 1 | J52: 1 | K52: 1
A53: 52 | B53: 0 | C53: 1 | D53: 0 | E53: 1 | F53: 0 | G53: 1 | H53: 1 | I53: 1 | J53: 1 | K53: 1
A54: 53 | B54: 0 | C54: 1 | D54: 0 | E54: 1 | F54: 0 | G54: 1 | H54: 1 | I54: 0 | J54: 0 | K54: 0
A55: 54 | B55: 0 | C55: 1 | D55: 0 | E55: 1 | F55: 1 | G55: 1 | H55: 1 | I55: 1 | J55: 1 | K55: 1
A56: 55 | B56: 0 | C56: 1 | D56: 0 | E56: 1 | F56: 1 | G56: 1 | H56: 0 | I56: 0 | J56: 1 | K56: 1
A57: 56 | B57: 0 | C57: 1 | D57: 0 | E57: 1 | F57: 0 | G57: 1 | H57: 0 | I57: 1 | J57: 0 | K57: 0
A58: 57 | B58: 1 | C58: 1 | D58: 1 | E58: 1 | F58: 1 | G58: 1 | H58: 1 | I58: 1 | J58: 1 | K58: 1
A59: 58 | B59: 0 | C59: 1 | D59: 0 | E59: 1 | F59: 0 | G59: 1 | H59: 1 | I59: 0 | J59: 1 | K59: 1
A60: 59 | B60: 1 | C60: 1 | D60: 0 | E60: 1 | F60: 0 | G60: 0 | H60: 0 | I60: 0 | J60: 0 | K60: 0
A61: 60 | B61: 0 | C61: 1 | D61: 1 | E61: 1 | F61: 0 | G61: 1 | H61: 0 | I61: 0 | J61: 1 | K61: 1
A62: 61 | B62: 1 | C62: 1 | D62: 1 | E62: 1 | F62: 1 | G62: 1 | H62: 0 | I62: 1 | J62: 1 | K62: 1
A63: 62 | B63: 0 | C63: 0 | D63: 0 | E63: 0 | F63: 1 | G63: 1 | H63: 0 | I63: 0 | J63: 1 | K63: 1
A64: 63 | B64: 1 | C64: 1 | D64: 0 | E64: 1 | F64: 0 | G64: 1 | H64: 1 | I64: 1 | J64: 1 | K64: 1
A65: 64 | B65: 1 | C65: 1 | D65: 1 | E65: 1 | F65: 1 | G65: 1 | H65: 1 | I65: 0 | J65: 0 | K65: 0
A66: 65 | B66: 0 | C66: 1 | D66: 0 | E66: 1 | F66: 0 | G66: 1 | H66: 0 | I66: 0 | J66: 1 | K66: 1
A67: 66 | B67: 0 | C67: 0 | D67: 0 | E67: 1 | F67: 1 | G67: 1 | H67: 1 | I67: 0 | J67: 0 | K67: 0
A68: 67 | B68: 0 | C68: 1 | D68: 1 | E68: 1 | F68: 0 | G68: 1 | H68: 0 | I68: 0 | J68: 1 | K68: 1
A69: 68 | B69: 0 | C69: 0 | D69: 1 | E69: 1 | F69: 0 | G69: 1 | H69: 1 | I69: 1 | J69: 1 | K69: 1
A70: 69 | B70: 0 | C70: 1 | D70: 0 | E70: 1 | F70: 1 | G70: 1 | H70: 1 | I70: 0 | J70: 1 | K70: 1
A71: 70 | B71: 0 | C71: 1 | D71: 1 | E71: 1 | F71: 1 | G71: 1 | H71: 0 | I71: 0 | J71: 1 | K71: 1
A72: 71 | B72: 0 | C72: 1 | D72: 1 | E72: 1 | F72: 0 | G72: 1 | H72: 0 | I72: 0 | J72: 0 | K72: 0
A73: 72 | B73: 1 | C73: 1 | D73: 1 | E73: 0 | F73: 1 | G73: 1 | H73: 0 | I73: 1 | J73: 1 | K73: 0
A74: 73 | B74: 0 | C74: 1 | D74: 0 | E74: 1 | F74: 0 | G74: 1 | H74: 0 | I74: 0 | J74: 0 | K74: 0
A75: 74 | B75: 1 | C75: 1 | D75: 1 | E75: 1 | F75: 1 | G75: 1 | H75: 1 | I75: 0 | J75: 1 | K75: 1
A76: 75 | B76: 1 | C76: 1 | D76: 0 | E76: 1 | F76: 0 | G76: 1 | H76: 1 | I76: 1 | J76: 0 | K76: 0
A77: 76 | B77: 0 | C77: 1 | D77: 0 | E77: 1 | F77: 0 | G77: 1 | H77: 1 | I77: 1 | J77: 1 | K77: 1
A78: 77 | B78: 1 | C78: 1 | D78: 1 | E78: 1 | F78: 0 | G78: 1 | H78: 1 | I78: 1 | J78: 1 | K78: 1
A79: 78 | B79: 0 | C79: 1 | D79: 0 | E79: 1 | F79: 0 | G79: 0 | H79: 0 | I79: 0 | J79: 1 | K79: 1
A80: 79 | B80: 1 | C80: 1 | D80: 0 | E80: 1 | F80: 1 | G80: 1 | H80: 1 | I80: 1 | J80: 1 | K80: 1
A81: 80 | B81: 0 | C81: 1 | D81: 1 | E81: 1 | F81: 1 | G81: 1 | H81: 1 | I81: 0 | J81: 0 | K81: 0
A82: 81 | B82: 0 | C82: 1 | D82: 0 | E82: 1 | F82: 1 | G82: 1 | H82: 1 | I82: 0 | J82: 1 | K82: 1
A83: 82 | B83: 1 | C83: 0 | D83: 1 | E83: 1 | F83: 0 | G83: 1 | H83: 0 | I83: 0 | J83: 1 | K83: 1
A84: 83 | B84: 1 | C84: 0 | D84: 1 | E84: 1 | F84: 0 | G84: 1 | H84: 1 | I84: 0 | J84: 1 | K84: 1
A85: 84 | B85: 1 | C85: 0 | D85: 0 | E85: 0 | F85: 0 | G85: 1 | H85: 0 | I85: 0 | J85: 1 | K85: 0
A86: 85 | B86: 1 | C86: 0 | D86: 1 | E86: 1 | F86: 0 | G86: 0 | H86: 0 | I86: 1 | J86: 0 | K86: 0
A87: 86 | B87: 1 | C87: 1 | D87: 0 | E87: 1 | F87: 1 | G87: 1 | H87: 1 | I87: 1 | J87: 1 | K87: 1
A88: 87 | B88: 0 | C88: 1 | D88: 1 | E88: 0 | F88: 1 | G88: 1 | H88: 0 | I88: 1 | J88: 1 | K88: 1
A89: 88 | B89: 1 | C89: 1 | D89: 1 | E89: 1 | F89: 0 | G89: 1 | H89: 1 | I89: 1 | J89: 1 | K89: 1
A90: 89 | B90: 0 | C90: 1 | D90: 1 | E90: 1 | F90: 1 | G90: 1 | H90: 0 | I90: 1 | J90: 1 | K90: 1
A91: 90 | B91: 1 | C91: 1 | D91: 1 | E91: 1 | F91: 1 | G91: 1 | H91: 1 | I91: 0 | J91: 1 | K91: 0
A92: 91 | B92: 1 | C92: 0 | D92: 1 | E92: 1 | F92: 0 | G92: 1 | H92: 1 | I92: 1 | J92: 1 | K92: 1
A93: 92 | B93: 1 | C93: 1 | D93: 1 | E93: 1 | F93: 1 | G93: 1 | H93: 0 | I93: 0 | J93: 0 | K93: 0
A94: 93 | B94: 1 | C94: 0 | D94: 0 | E94: 1 | F94: 1 | G94: 1 | H94: 1 | I94: 1 | J94: 1 | K94: 1
A95: 94 | B95: 0 | C95: 1 | D95: 1 | E95: 1 | F95: 1 | G95: 0 | H95: 0 | I95: 0 | J95: 1 | K95: 1
A96: 95 | B96: 0 | C96: 0 | D96: 1 | E96: 1 | F96: 0 | G96: 0 | H96: 0 | I96: 0 | J96: 0 | K96: 0
A97: 96 | B97: 0 | C97: 0 | D97: 1 | E97: 1 | F97: 0 | G97: 0 | H97: 0 | I97: 0 | J97: 0 | K97: 0
A98: 97 | B98: 1 | C98: 1 | D98: 1 | E98: 1 | F98: 0 | G98: 1 | H98: 1 | I98: 1 | J98: 0 | K98: 0
A99: 98 | B99: 1 | C99: 0 | D99: 0 | E99: 1 | F99: 0 | G99: 1 | H99: 0 | I99: 0 | J99: 1 | K99: 1
A100: 99 | B100: 0 | C100: 1 | D100: 1 | E100: 1 | F100: 0 | G100: 1 | H100: 0 | I100: 0 | J100: 0 | K100: 0
A101: 100 | B101: 0 | C101: 1 | D101: 0 | E101: 1 | F101: 0 | G101: 1 | H101: 0 | I101: 0 | J101: 1 | K101: 1

Sheet Correlation_Tables
A1: Tetrachoric correlation table (user-defined function: Tetra; function INDIRECT to refer to named data columns):
B2: var1_ | C2: var2_ | D2: var3_ | E2: var4_ | F2: var5_ | G2: var6_ | H2: var7_ | I2: var8_ | J2: var9_ | K2: var10_
A3: var1_ | B3: =Tetra(INDIRECT($A3), INDIRECT(B$2)) -> 1 | C3: =Tetra(INDIRECT($A3), INDIRECT(C$2)) -> -0.1266519655 | D3: 0.02542133601 | E3: 0.08742572472 | F3: 0.1981962229 | G3: 0.1677205917 | H3: 0.3753560726 | I3: 0.391601901 | J3: 0.2620034474 | K3: 0.01742358161 | M3: Formulas use mixed-type cell references:
A4: var2_ | B4: =Tetra(INDIRECT($A4), INDIRECT(B$2)) -> -0.1266519655 | C4: 1 | D4: -0.268408865 | E4: 0.0424722315 | F4: 0.266255342 | G4: 0.7116567588 | H4: 0.2887835024 | I4: 0.1817891632 | J4: 0.3632929442 | K4: 0.2606382334 | M4: =Tetra(INDIRECT(RC2), INDIRECT(R2C))
A5: var3_ | B5: 0.02542133601 | C5: -0.268408865 | D5: 1 | E5: -0.1409153438 | F5: 0.01311236037 | G5: -0.3764264914 | H5: -0.3381175795 | I5: -0.1822862834 | J5: -0.4220744054 | K5: -0.3952774601
A6: var4_ | B6: 0.08742572472 | C6: 0.0424722315 | D6: -0.1409153438 | E6: 1 | F6: -0.1758238144 | G6: -1 | H6: 0.1580175479 | I6: 1.034115536e-13 | J6: -0.1885914635 | K6: 0.09324988229
A7: var5_ | B7: 0.1981962229 | C7: 0.266255342 | D7: 0.01311236037 | E7: -0.1758238144 | F7: 1 | G7: 0.06778099246 | H7: 0.2207128172 | I7: 0.1350723837 | J7: 0.266255342 | K7: 0.07227735603
A8: var6_ | B8: 0.1677205917 | C8: 0.7116567588 | D8: -0.3764264914 | E8: -1 | F8: 0.06778099246 | G8: 1 | H8: 1 | I8: 0.6761338039 | J8: 0.5983674352 | K8: 0.4853591434
A9: var7_ | B9: 0.3753560726 | C9: 0.2887835024 | D9: -0.3381175795 | E9: 0.1580175479 | F9: 0.2207128172 | G9: 1 | H9: 1 | I9: 0.5791724578 | J9: 0.4404592336 | K9: 0.28423258
A10: var8_ | B10: 0.391601901 | C10: 0.1817891632 | D10: -0.1822862834 | E10: 1.034115536e-13 | F10: 0.1350723837 | G10: 0.6761338039 | H10: 0.5791724578 | I10: 1 | J10: 0.6131603491 | K10: 0.5092494209
A11: var9_ | B11: 0.2620034474 | C11: 0.3632929442 | D11: -0.4220744054 | E11: -0.1885914635 | F11: 0.266255342 | G11: 0.5983674352 | H11: 0.4404592336 | I11: 0.6131603491 | J11: 1 | K11: 1
A12: var10_ | B12: 0.01742358161 | C12: 0.2606382334 | D12: -0.3952774601 | E12: 0.09324988229 | F12: 0.07227735603 | G12: 0.4853591434 | H12: 0.28423258 | I12: 0.5092494209 | J12: 1 | K12: 1
A15: Compare to the Pearson-moment correlations (Excel function CORREL):
B16: var1_ | C16: var2_ | D16: var3_ | E16: var4_ | F16: var5_ | G16: var6_ | H16: var7_ | I16: var8_ | J16: var9_ | K16: var10_
A17: var1_ | B17: =CORREL(INDIRECT($A17), INDIRECT(B$16)) -> 1 | C17: =CORREL(INDIRECT($A17), INDIRECT(C$16)) -> -0.04354022946 | D17: 0.01609348499 | E17: 0.03350126051 | F17: 0.123091491 | G17: 0.06745441055 | H17: 0.2432678097 | I17: 0.246182982 | J17: 0.1522110043 | K17: 0.01053565902 | M17: Formulas use mixed-type cell references:
A18: var2_ | B18: =CORREL(INDIRECT($A18), INDIRECT(B$16)) -> -0.04354022946 | C18: 1 | D18: -0.160506261 | E18: 0.02649016472 | F18: 0.1580383956 | G18: 0.3720663996 | H18: 0.2067698303 | I18: 0.1461795421 | J18: 0.2338821385 | K18: 0.1791612833 | M18: =CORREL(INDIRECT(RC2), INDIRECT(R16C))
A19: var3_ | B19: 0.01609348499 | C19: -0.160506261 | D19: 1 | E19: -0.05337605127 | F19: 0.008171505631 | G19: -0.1458549627 | H19: -0.219419459 | I19: -0.1144010788 | J19: -0.2425109458 | K19: -0.2433968776
A20: var4_ | B20: 0.03350126051 | C20: 0.02649016472 | D20: -0.05337605127 | E20: 1 | F20: -0.06804138174 | G20: -0.1171871749 | H20: 0.0600120036 | I20: -3.965908204e-17 | J20: -0.05939138709 | K20: 0.03494282789
A21: var5_ | B21: 0.123091491 | C21: 0.1580383956 | D21: 0.008171505631 | E21: -0.06804138174 | F21: 1 | G21: 0.0260953439 | H21: 0.138832188 | I21: 0.08333333333 | J21: 0.1454785935 | K21: 0.04279604925
A22: var6_ | B22: 0.06745441055 | C22: 0.3720663996 | D22: -0.1458549627 | E22: -0.1171871749 | F22: 0.0260953439 | G22: 1 | H22: 0.3445992209 | I22: 0.2218104231 | J22: 0.2790290736 | K22: 0.2110709707
A23: var7_ | B23: 0.2432678097 | C23: 0.2067698303 | D23: -0.219419459 | E23: 0.0600120036 | F23: 0.138832188 | G23: 0.3445992209 | H23: 1 | I23: 0.3838301667 | J23: 0.2548400237 | K23: 0.1740500964
A24: var8_ | B24: 0.246182982 | C24: 0.1461795421 | D24: -0.1144010788 | E24: -3.965908204e-17 | F24: 0.08333333333 | G24: 0.2218104231 | H24: 0.3838301667 | I24: 1 | J24: 0.3273268354 | K24: 0.2995723448
A25: var9_ | B25: 0.1522110043 | C25: 0.2338821385 | D25: -0.2425109458 | E25: -0.05939138709 | F25: 0.1454785935 | G25: 0.2790290736 | H25: 0.2548400237 | I25: 0.3273268354 | J25: 1 | K25: 0.8498365856
A26: var10_ | B26: 0.01053565902 | C26: 0.1791612833 | D26: -0.2433968776 | E26: 0.03494282789 | F26: 0.04279604925 | G26: 0.2110709707 | H26: 0.1740500964 | I26: 0.2995723448 | J26: 0.8498365856 | K26: 1

Sheet Copy_Function_Code
A1: Excel stores the VBA code for user-defined functions and macros in modules that user can open by pressing Alt+F11.
A2: An inactive copy of the function "Tetra" is kept here for the event that the module inadvertently is lost.
B4: Function Tetra(S As Range, T As Range)
B5: 'Tetrachoric correlations for binary variables
B7: 'using the noniterative Edwards and Edwards estimator:
B8: 'Edwards, J. H., and A. W. F. Edwards. 1984. Approximating the
B9: 'tetrachoric correlation coefficient. Biometrics 40: 563.
B12: 'Aldo Benini, 4 April 2019
B13: 'Adapted, with corrections, from:
B14: 'Lewis, N. D. C. (2004). Operational Risk with Excel and VBA:
B15: 'Applied Statistical Methods for Risk Management,John Wiley & Sons, p.128.
B17: 'Error checks:
B18: If (S.Columns.Count > 1 Or T.Columns.Count > 1) Then
B19: Tetra = "Ranges have to be only one column each"
B20: ElseIf (S.Rows.Count < 10 Or T.Rows.Count < 10) Then
B21: Tetra = "At least 10 rows are needed"
B22: ElseIf (S.Rows.Count <> T.Rows.Count) Then
B23: Tetra = "Equal number of rows required"
B25: Else 'Start calculating the cell frequencies of the 2x2-table:
B26: Dim a As Integer
B27: Dim b As Integer
B28: Dim c As Integer
B29: Dim d As Integer
B31: a = 0
B32: b = 0
B33: c = 0
B34: d = 0
B36: Dim pi As Double
B37: pi = 3.14159265359
B39: For i = 1 To S.Rows.Count
B40: If (S(i, 1) = 1 And (T(i, 1) = 1)) Then a = a + 1
B41: 'Corresponds to n11 in the STATA reference text.
B43: If (S(i, 1) = 1 And (T(i, 1) = 0)) Then b = b + 1 'n10
B44: If (S(i, 1) = 0 And (T(i, 1) = 1)) Then c = c + 1 'n01
B45: If (S(i, 1) = 0 And (T(i, 1) = 0)) Then d = d + 1 'n00
B46: Next i
B48: If a + b = 0 Or a + c = 0 Or b + d = 0 Or c + d = 0 Then
B49: Tetra = "One of the variables is a constant"
B50: ElseIf b * c = 0 Then
B51: Tetra = 1
B52: ElseIf a * d = 0 Then
B53: Tetra = -1
B54: Else
B55: Tetra = -Cos(pi / (1 + (Sqr((b * c) / (a * d)))))
B56: End If
B58: End If
B60: End Function

Sheet Rationale_Betti_Verma
A1: Redundancy and discrimination among indicators
B2: A survey designer wants to measure a fairly broad concept, e.g. deprivation:
C3: The concept is "multi-dimensional", but the structure of dimensions is poorly understood; plausibly they overlap, i.e. reinforce each other and, in their observable manifestations, are significantly correlated.
C4: From the semantic universe of the concept, e.g. the (possibly infinite) set of things related to it, the designer takes a sample of those that can be measured (the "indicators").
C5: The designer assumes that every indicator reflects some part of the concept, i.e. is positively correlated with the corresponding quantitative construct (which is not directly observable).
C6: Therefore he/she expects that the indicators are positively correlated among themselves, although in varying degrees.
C7: However, some aspect of the concept may be "oversampled" (several indicators capture it), whereas an other aspect may be approximated by none, one or very few indicators.
C8: Oversampled aspects should result in highly positively correlated indicators (the reverse need not be the case), some of which are likely to be redundant.
C9: Indicators that have low positive correlations with most of the others may either capture some aspect uniquely or be foreign to the concept in point.
C10: Some low negative correlations are to be expected; strong negative ones signal validity problems and may require eliminating the concerned indicators.
C11: Moreover, some indicators discriminate better than others; i.e. have a wider relative spread (a larger coefficient of variation).
C12: The aggregation of the indicators into the index should penalize redundancy (lower their weights) and reward discrimination (increase weights).
C13: The Betti-Verma aggregation method achieves that, for binary, count as well as continuous indicators (but not for ordinal ones).
B14: The STATA procedure "mdepriv" (https://econpapers.repec.org/software/bocbocode/s457806.htm ) implements the method for any such mixed-type set of indicators.
B15: For Excel users, this workbook demonstrates the calculation of Betti-Verma weights and scores for the case of binary indicators. We propose alternatives to the coefficient of variation.
A17: Betti-Verma for binary indicators
B18: Not uncommonly, for the measurement of some concept, a number of binary indicators are combined in an index (e.g., household wealth via an asset index that counts the presence of durable household items from a defined list)
B19: Classic model-based statistical methods such a Mokken scales or Item Response Theory scales may fail because they presume strong uni-dimensionality.
B20: Betti-Verma steps into such situations and produces a valid index. This construct is limited [0, 1] ratio level, i.e. permits a variety of operations in subsequent analysis.
B21: The validity is limited to the sample because the indicator weights themselves are data-driven. Inference to populations has to be conservative.
A23: Sources
B24: Pi Alperin, M. N. and P. Van Kerm (2009, rev. 2014). mdepriv - Synthetic indicators of multiple deprivation. v2.0 (revised March 2014). Esch/Alzette, Luxembourg, CEPS/INSTEAD.
B25: [On the internet, only the 2009 version is available: http://medim.ceps.lu/stata/mdepriv_v1.pdf . I will make the 2014 one available.]
B26: Betti, G. and V. Verma (1999). Measuring the degree of poverty in a dynamic and comparative context: a multi-dimensional approach using fuzzy set theory. Proceedings of the Sixth Islamic Countries Conference on Statistical Science ICCS-VI, Lahore (Pakistan), August 27-31, Lahore (Pakistan).
B27: https://www.researchgate.net/profile/Gianni_Betti/publication/241227568_Measuring_the_degree_of_poverty_in_a_dynamic_and_comparative_context_A_multi-dimensional_approach_using_fuzzy_set_theory/links/00b49533307370c675000000/Measuring-the-degree-of-poverty-in-a-dynamic-and-comparative-context-A-multi-dimensional-approach-using-fuzzy-set-theory.pdf
B28: [Going beyond the initial approach:] Betti, G., F. Gagliardi, A. Lemmi and V. Verma (2015). "Comparative measures of multidimensional deprivation in the European Union." Empirical Economics 49(3): 1071-1100.
B29: https://www.researchgate.net/profile/Gianni_Betti/publication/270454990_Comparative_measures_of_multidimensional_deprivation_in_the_European_Union/links/5630b6c408aee0eba0196822/Comparative-measures-of-multidimensional-deprivation-in-the-European-Union.pdf

Sheet B_V_weight_formulas
A1: Pi Alperin, M. N. and P. Van Kerm (2009, rev. 2014). mdepriv - Synthetic indicators of multiple deprivation. v2.0 (revised March 2014). Esch/Alzette, Luxembourg, CEPS/INSTEAD, page 2:
A2: Note: This workbook implements the second weight factor, wbj, only for the case rohH = 0. This should be sufficient for most situations.
A3: For the first weight, waj, we provide three alternatives to the coefficient of variation. The CoV is not suitable for binary indicators.

Sheet Betti_Verma_weights
A1: Work flow to obtain Betti-Verma weights (and then use them to obtain scores and statistics)
C2: Binary indicators (1=undesirable state [lackings, hazards, etc.]; 0=preferred)
A3: 1. Step: | B3: Tetrachoric correlations: | C3: var1_ | D3: var2_ | E3: var3_ | F3: var4_ | G3: var5_ | H3: var6_ | I3: var7_ | J3: var8_ | K3: var9_ | L3: var10_
A4: Verify all indicators have the same substantive direction; else reverse the incorrectly coded ones [= replace x by 1 -x] Calculate the tetrachoric correlation table Calculate the item prevalences (proportions present in sample) | B4: var1_ | C4: =Tetra(INDIRECT($B4), INDIRECT(C$3)) -> 1 | D4: =Tetra(INDIRECT($B4), INDIRECT(D$3)) -> -0.1266519655 | E4: 0.02542133601 | F4: 0.08742572472 | G4: 0.1981962229 | H4: 0.1677205917 | I4: 0.3753560726 | J4: 0.391601901 | K4: 0.2620034474 | L4: 0.01742358161
B5: var2_ | C5: =Tetra(INDIRECT($B5), INDIRECT(C$3)) -> -0.1266519655 | D5: 1 | E5: -0.268408865 | F5: 0.0424722315 | G5: 0.266255342 | H5: 0.7116567588 | I5: 0.2887835024 | J5: 0.1817891632 | K5: 0.3632929442 | L5: 0.2606382334
B6: var3_ | C6: 0.02542133601 | D6: -0.268408865 | E6: 1 | F6: -0.1409153438 | G6: 0.01311236037 | H6: -0.3764264914 | I6: -0.3381175795 | J6: -0.1822862834 | K6: -0.4220744054 | L6: -0.3952774601
B7: var4_ | C7: 0.08742572472 | D7: 0.0424722315 | E7: -0.1409153438 | F7: 1 | G7: -0.1758238144 | H7: -1 | I7: 0.1580175479 | J7: 1.034115536e-13 | K7: -0.1885914635 | L7: 0.09324988229
B8: var5_ | C8: 0.1981962229 | D8: 0.266255342 | E8: 0.01311236037 | F8: -0.1758238144 | G8: 1 | H8: 0.06778099246 | I8: 0.2207128172 | J8: 0.1350723837 | K8: 0.266255342 | L8: 0.07227735603
B9: var6_ | C9: 0.1677205917 | D9: 0.7116567588 | E9: -0.3764264914 | F9: -1 | G9: 0.06778099246 | H9: 1 | I9: 1 | J9: 0.6761338039 | K9: 0.5983674352 | L9: 0.4853591434
B10: var7_ | C10: 0.3753560726 | D10: 0.2887835024 | E10: -0.3381175795 | F10: 0.1580175479 | G10: 0.2207128172 | H10: 1 | I10: 1 | J10: 0.5791724578 | K10: 0.4404592336 | L10: 0.28423258
B11: var8_ | C11: 0.391601901 | D11: 0.1817891632 | E11: -0.1822862834 | F11: 1.034115536e-13 | G11: 0.1350723837 | H11: 0.6761338039 | I11: 0.5791724578 | J11: 1 | K11: 0.6131603491 | L11: 0.5092494209
B12: var9_ | C12: 0.2620034474 | D12: 0.3632929442 | E12: -0.4220744054 | F12: -0.1885914635 | G12: 0.266255342 | H12: 0.5983674352 | I12: 0.4404592336 | J12: 0.6131603491 | K12: 1 | L12: 1
B13: var10_ | C13: 0.01742358161 | D13: 0.2606382334 | E13: -0.3952774601 | F13: 0.09324988229 | G13: 0.07227735603 | H13: 0.4853591434 | I13: 0.28423258 | J13: 0.5092494209 | K13: 1 | L13: 1
B15: Prevalence of items:
B16: Sample mean (e.g., proportion of households lacking the item) | C16: =AVERAGE(INDIRECT(C3)) -> 0.55 | D16: =AVERAGE(INDIRECT(D3)) -> 0.7346938776 | E16: 0.52 | F16: 0.9 | G16: 0.4 | H16: 0.89 | I16: 0.49 | J16: 0.4 | K16: 0.72 | L16: 0.65
B19: BETTI-VERMA FORMULA ELEMENTS, RAW (= not yet normalized)
A20: Step 2: | B20: Betti-Verma first weight:
A21: Determine the values of the first Betti-Verma double-weighting components 2.a.: Decide, on substantive grounds, on the analytic option: Equal, user-defined, social justice-led (Desai-Shah) 2.b.: Set or calculate the value for each indicator. No normalization required at this point. | B21: Three analyic choices: | M21: The STATA procedure mdepriv offers more choices, some of which are inappropriate for binary indicators.
B22: Equal | C22: 1 | D22: 1 | E22: 1 | F22: 1 | G22: 1 | H22: 1 | I22: 1 | J22: 1 | K22: 1 | L22: 1 | M22: Recommended for simplicity and for avoiding precarious assumption about the greater or lesser importance of some items
B24: User-defined | C24: 3 | D24: 1 | E24: 1 | F24: 3 | G24: 1 | H24: 1 | I24: 2 | J24: 2 | K24: 1 | L24: 1 | M24: Generally not recommended. Second-guesses the data without reference to the correlation pattern. May be permissible if there is a consensual and compelling hierarchy of indicators , but for such situations other approaches may be more suitable (e.g., lexicographic ranking).
B26: Desai-Shah weighting: = prop. of households who own the item | C26: =1 - C$16 -> 0.45 | D26: =1 - D$16 -> 0.2653061224 | E26: 0.48 | F26: 0.1 | G26: 0.6 | H26: 0.11 | I26: 0.51 | J26: 0.6 | K26: 0.28 | L26: 0.35 | M26: Recommended for social justice considerations
B27: Emphasis is on items that many or most households own, but the poorest may not have | C27: Desai, M. & Shah, A. (1988), ‘An econometric approach to the measurement of poverty’, Oxford, Economic Papers, 40(3):505–522.
A29: Step 3: Calculate the second BV weighting component | B29: Betti-Verma's second weight: | C29: =1 /((1 + SUM(IF(C$4:C$13<0, C$4:C$13))) * SUM(IF(C$4:C$13>0, C$4:C$13))) -> 0.4534460932 | D29: =1 /((1 + SUM(IF(D$4:D$13<0, D$4:D$13))) * SUM(IF(D$4:D$13>0, D$4:D$13))) -> 0.5306960243 | E29: =1 /((1 + SUM(IF(E$4:E$13<0, E$4:E$13))) * SUM(IF(E$4:E$13>0, E$4:E$13))) -> -0.8570454349 | F29: =1 /((1 + SUM(IF(F$4:F$13<0, F$4:F$13))) * SUM(IF(F$4:F$13>0, F$4:F$13))) -> -1.432777319 | G29: =1 /((1 + SUM(IF(G$4:G$13<0, G$4:G$13))) * SUM(IF(G$4:G$13>0, G$4:G$13))) -> 0.5417479775 | H29: =1 /((1 + SUM(IF(H$4:H$13<0, H$4:H$13))) * SUM(IF(H$4:H$13>0, H$4:H$13))) -> -0.5643829616 | I29: =1 /((1 + SUM(IF(I$4:I$13<0, I$4:I$13))) * SUM(IF(I$4:I$13>0, I$4:I$13))) -> 0.3475810319 | J29: =1 /((1 + SUM(IF(J$4:J$13<0, J$4:J$13))) * SUM(IF(J$4:J$13>0, J$4:J$13))) -> 0.2992824695 | K29: =1 /((1 + SUM(IF(K$4:K$13<0, K$4:K$13))) * SUM(IF(K$4:K$13>0, K$4:K$13))) -> 0.5653055972 | L29: =1 /((1 + SUM(IF(L$4:L$13<0, L$4:L$13))) * SUM(IF(L$4:L$13>0, L$4:L$13))) -> 0.4442396117 | M29: The formula implements this algebra:
B30: Formula (enter as array formula!): | C30: {=1 /((1 + SUM(IF(R4C:R13C<0, R4C:R13C))) * SUM(IF(R4C:R13C>0, R4C:R13C)))} | M30: Choice of rhoH = 0
A32: Step 4: Multiply: First x second weight x (second w. is > 0) | C32: Exclude items with negative second weights (they likely belong to a different concept, e.g., not typical deprivation)
B33: Three analyic choices:
B34: Equal first weights | C34: =C22*C$29*(C$29>0) -> 0.4534460932 | D34: =D22*D$29*(D$29>0) -> 0.5306960243 | E34: 0 | F34: 0 | G34: 0.5417479775 | H34: 0 | I34: 0.3475810319 | J34: 0.2992824695 | K34: 0.5653055972 | L34: 0.4442396117 | M34: Inclusion is modeled through the indicator (red) in this formula:
M35: =R[-12]C*R29C*(R29C>0)
B36: User-defined first weights | C36: =C24*C$29*(C$29>0) -> 1.36033828 | D36: 0.5306960243 | E36: 0 | F36: 0 | G36: 0.5417479775 | H36: 0 | I36: 0.6951620639 | J36: 0.598564939 | K36: 0.5653055972 | L36: 0.4442396117
M37: Note mixed-type vs. absolute cell references in formulas!
B38: Desai-Shah weighting: first weight = prop. of households who own the item | C38: =C26*C$29*(C$29>0) -> 0.2040507419 | D38: 0.1407969044 | E38: 0 | F38: 0 | G38: 0.3250487865 | H38: 0 | I38: 0.1772663263 | J38: 0.1795694817 | K38: 0.1582855672 | L38: 0.1554838641
B40: BETTI-VERMA FORMULA ELEMENTS, NORMALIZED (= summing to 1)
A41: Step 5: Normalize the weights such that they sum to 1 over all items | B41: Three analyic choices:
B42: Equal first weights | C42: =C34 / SUM($C34:$L34) -> 0.1424901057 | D42: =D34 / SUM($C34:$L34) -> 0.1667649887 | E42: 0 | F42: 0 | G42: 0.1702379351 | H42: 0 | I42: 0.1092232544 | J42: 0.09404599876 | K42: 0.1776406402 | L42: 0.1395970771 | M42: For the calculation of the BV scores, we name this range "EqualFirst"
B44: User-defined first weights | C44: =C36 / SUM($C36:$L36) -> 0.2872302845 | D44: 0.1120544591 | E44: 0 | F44: 0 | G44: 0.1143880372 | H44: 0 | I44: 0.1467808415 | J44: 0.1263847238 | K44: 0.1193621395 | L44: 0.09379951442 | M44: For the calculation of the BV scores, we name this range "UserDef"
B46: Desai-Shah weighting: first weight = prop. of households who own the item | C46: =C38 / SUM($C38:$L38) -> 0.1522196848 | D46: 0.1050329942 | E46: 0 | F46: 0 | G46: 0.24248294 | H46: 0 | I46: 0.1322387954 | J46: 0.1339569248 | K46: 0.1180793508 | L46: 0.1159893101 | M46: For the calculation of the BV scores, we name this range "DesaiShah"
A48: Step 6: Use the weights to calculate the Betti-Verma score for every observed unit (e.g., household), as in sheet "Betti_Verma_scores" | B48: Review weights critically on substantive grounds: 1. Indicators with very high weights may not fit (very low pos. or some neg. correl. with all others) 2. Indicators with very low weights: Check if they are very highly correl. with others --> high redundancy. If corr. coef. = +1, one or the other is implied (e.g. "toilet use" implies "toilet access"). Eliminate items with excessive weights and implied ones from index; recalculate.
A50: Step 7: Calculate the frequency table and distribution statistics (mean, st.dev.) of the BV scores, as in sheet "Indices_compared". | B50: Typically, one decides on one option only (equal first weight, or user-defined, or Desai-Shah). If for any reason you work with several BV options or non-BV indices, calculate (Pearson-moment) correlations and inspect scatterplots, compare weights and aggregation methods, even check the association of their scores with external variables (e.g., groups of affected people, gender of household head, etc.) before settling on the best candidate.
A52: Step 8: Use the final index in the further analysis of the survey / assessment, etc. data.

Sheet Betti_Verma_scores
A1: Calculation of five variants of the same index, incl. three Betti-Verma options
N2: Betti-Verma
A3: Static copy of the data (to keep the Betti-Verma stuff out of the sheet "Data", not needed in "real life"): | L3: Naïve count-based score (no variables excluded) | M3: Exclusions after inspection of correlation table; no Betti-Verma | N3: Equal first weight on all items | O3: User-defined for each weight | P3: Emphasize social justice with higher weights on gaps that chiefly affect the poorest
A4: id | B4: var1 | C4: var2 | D4: var3 | E4: var4 | F4: var5 | G4: var6 | H4: var7 | I4: var8 | J4: var9 | K4: var10 | L4: Index1a | M4: Index1b | N4: Index2a | O4: Index2b | P4: Index2c
A5: 1 | B5: 1 | C5: 0 | D5: 0 | E5: 1 | F5: 0 | G5: 1 | H5: 1 | I5: 1 | J5: 1 | K5: 1 | L5: =AVERAGE($B5:$K5) -> 0.7 | M5: =AVERAGE(B5:C5,F5,H5:K5) -> 0.7142857143 | N5: =SUMPRODUCT($B5:$K5, EqualFirst) -> 0.6629970762 | O5: =SUMPRODUCT($B5:$K5, UserDef) -> 0.7735575038 | P5: =SUMPRODUCT($B5:$K5,DesaiShah) -> 0.6524840658
A6: 2 | B6: 1 | D6: 0 | E6: 1 | F6: 0 | G6: 1 | H6: 1 | I6: 1 | J6: 1 | K6: 1 | L6: =AVERAGE($B6:$K6) -> 0.7777777778 | M6: =AVERAGE(B6:C6,F6,H6:K6) -> 0.8333333333 | N6: 0.6629970762 | O6: 0.7735575038 | P6: 0.6524840658
A7: 3 | B7: 1 | D7: 1 | E7: 1 | F7: 1 | G7: 1 | H7: 1 | I7: 1 | J7: 1 | K7: 1 | L7: 1 | M7: 1 | N7: 0.8332350113 | O7: 0.8879455409 | P7: 0.8949670058
A8: 4 | B8: 1 | C8: 1 | D8: 0 | E8: 1 | F8: 0 | G8: 1 | H8: 1 | I8: 0 | J8: 1 | K8: 1 | L8: 0.7 | M8: 0.7142857143 | N8: 0.7357160661 | O8: 0.759227239 | P8: 0.6235601352
A9: 5 | B9: 1 | C9: 1 | D9: 0 | E9: 1 | F9: 1 | G9: 1 | H9: 1 | I9: 1 | J9: 1 | K9: 0 | L9: 0.8 | M9: 0.8571428571 | N9: 0.8604029229 | O9: 0.9062004856 | P9: 0.8840106899
A10: 6 | B10: 0 | C10: 1 | D10: 1 | E10: 1 | F10: 0 | G10: 1 | H10: 1 | I10: 1 | J10: 1 | K10: 1 | L10: 0.8 | M10: 0.7142857143 | N10: 0.6872719592 | O10: 0.5983816783 | P10: 0.6052973753
A11: 7 | B11: 0 | C11: 0 | D11: 1 | E11: 1 | F11: 0 | G11: 0 | H11: 0 | I11: 0 | J11: 0 | K11: 0 | L11: 0.2 | M11: 0 | N11: 0 | O11: 0 | P11: 0
A12: 8 | B12: 1 | C12: 1 | D12: 0 | E12: 1 | F12: 0 | G12: 1 | H12: 1 | I12: 0 | J12: 1 | K12: 0 | L12: 0.6 | M12: 0.5714285714 | N12: 0.596118989 | O12: 0.6654277246 | P12: 0.5075708252
A13: 9 | B13: 1 | C13: 1 | D13: 1 | E13: 1 | F13: 1 | G13: 1 | H13: 1 | I13: 1 | J13: 1 | K13: 0 | L13: 0.9 | M13: 0.8571428571 | N13: 0.8604029229 | O13: 0.9062004856 | P13: 0.8840106899
A14: 10 | B14: 0 | C14: 1 | D14: 1 | E14: 0 | F14: 0 | G14: 1 | H14: 0 | I14: 0 | J14: 1 | K14: 1 | L14: 0.5 | M14: 0.4285714286 | N14: 0.484002706 | O14: 0.325216113 | P14: 0.3391016551
A15: 11 | B15: 0 | C15: 1 | D15: 0 | E15: 1 | F15: 0 | G15: 1 | H15: 0 | I15: 0 | J15: 1 | K15: 1 | L15: 0.5 | M15: 0.4285714286 | N15: 0.484002706 | O15: 0.325216113 | P15: 0.3391016551
A16: 12 | B16: 0 | C16: 1 | D16: 1 | E16: 1 | F16: 0 | G16: 1 | H16: 0 | I16: 0 | J16: 0 | K16: 0 | L16: 0.4 | M16: 0.1428571429 | N16: 0.1667649887 | O16: 0.1120544591 | P16: 0.1050329942
A17: 13 | B17: 0 | C17: 1 | D17: 1 | E17: 1 | F17: 0 | G17: 1 | H17: 1 | I17: 0 | J17: 1 | K17: 1 | L17: 0.7 | M17: 0.5714285714 | N17: 0.5932259604 | O17: 0.4719969545 | P17: 0.4713404505
A18: 14 | B18: 0 | C18: 0 | D18: 1 | E18: 1 | F18: 0 | G18: 1 | H18: 0 | I18: 0 | J18: 0 | K18: 0 | L18: 0.3 | M18: 0 | N18: 0 | O18: 0 | P18: 0
A19: 15 | B19: 1 | C19: 1 | D19: 1 | E19: 1 | F19: 0 | G19: 1 | H19: 0 | I19: 0 | J19: 0 | K19: 0 | L19: 0.5 | M19: 0.2857142857 | N19: 0.3092550944 | O19: 0.3992847436 | P19: 0.257252679
A20: 16 | B20: 1 | C20: 0 | D20: 0 | E20: 1 | F20: 1 | G20: 1 | H20: 1 | I20: 1 | J20: 1 | K20: 1 | L20: 0.8 | M20: 0.8571428571 | N20: 0.8332350113 | O20: 0.8879455409 | P20: 0.8949670058
A21: 17 | B21: 0 | C21: 1 | D21: 0 | E21: 1 | F21: 1 | G21: 1 | H21: 0 | I21: 0 | J21: 1 | K21: 1 | L21: 0.6 | M21: 0.5714285714 | N21: 0.6542406411 | O21: 0.4396041502 | P21: 0.5815845951
A22: 18 | B22: 0 | C22: 1 | D22: 1 | E22: 1 | F22: 0 | G22: 1 | H22: 0 | I22: 0 | J22: 1 | K22: 1 | L22: 0.6 | M22: 0.4285714286 | N22: 0.484002706 | O22: 0.325216113 | P22: 0.3391016551
A23: 19 | B23: 0 | C23: 0 | D23: 1 | E23: 1 | F23: 0 | G23: 1 | H23: 0 | I23: 1 | J23: 1 | K23: 1 | L23: 0.6 | M23: 0.4285714286 | N23: 0.4112837161 | O23: 0.3395463777 | P23: 0.3680255857
A24: 20 | B24: 1 | C24: 1 | D24: 1 | E24: 1 | F24: 1 | G24: 1 | H24: 0 | I24: 0 | J24: 0 | K24: 0 | L24: 0.6 | M24: 0.4285714286 | N24: 0.4794930295 | O24: 0.5136727808 | P24: 0.499735619
A25: 21 | B25: 0 | C25: 0 | D25: 1 | E25: 0 | F25: 0 | G25: 1 | H25: 0 | I25: 0 | J25: 0 | K25: 0 | L25: 0.2 | M25: 0 | N25: 0 | O25: 0 | P25: 0
A26: 22 | B26: 1 | C26: 1 | D26: 0 | E26: 1 | F26: 1 | G26: 1 | H26: 0 | I26: 0 | J26: 0 | K26: 0 | L26: 0.5 | M26: 0.4285714286 | N26: 0.4794930295 | O26: 0.5136727808 | P26: 0.499735619
A27: 23 | B27: 1 | C27: 0 | D27: 1 | E27: 1 | F27: 0 | G27: 1 | H27: 1 | I27: 0 | J27: 0 | K27: 0 | L27: 0.5 | M27: 0.2857142857 | N27: 0.2517133601 | O27: 0.434011126 | P27: 0.2844584801
A28: 24 | B28: 1 | C28: 1 | D28: 1 | E28: 1 | F28: 0 | G28: 1 | H28: 0 | I28: 0 | J28: 1 | K28: 1 | L28: 0.7 | M28: 0.5714285714 | N28: 0.6264928118 | O28: 0.6124463975 | P28: 0.4913213399
A29: 25 | B29: 1 | C29: 1 | D29: 1 | E29: 0 | F29: 1 | G29: 1 | H29: 1 | I29: 1 | J29: 1 | K29: 1 | L29: 0.9 | M29: 1 | N29: 1 | O29: 1 | P29: 1
A30: 26 | B30: 1 | C30: 1 | D30: 0 | E30: 1 | F30: 0 | G30: 1 | H30: 0 | I30: 0 | J30: 1 | K30: 1 | L30: 0.6 | M30: 0.5714285714 | N30: 0.6264928118 | O30: 0.6124463975 | P30: 0.4913213399
A31: 27 | B31: 1 | C31: 0 | D31: 1 | E31: 1 | F31: 1 | G31: 0 | H31: 0 | I31: 0 | J31: 0 | K31: 0 | L31: 0.4 | M31: 0.2857142857 | N31: 0.3127280408 | O31: 0.4016183217 | P31: 0.3947026247
A32: 28 | B32: 0 | C32: 1 | D32: 0 | E32: 0 | F32: 1 | G32: 1 | H32: 1 | I32: 0 | J32: 0 | K32: 0 | L32: 0.4 | M32: 0.4285714286 | N32: 0.4462261782 | O32: 0.3732233377 | P32: 0.4797547296
A33: 29 | B33: 1 | C33: 1 | D33: 0 | E33: 1 | F33: 0 | G33: 1 | H33: 1 | I33: 1 | J33: 1 | K33: 1 | L33: 0.8 | M33: 0.8571428571 | N33: 0.8297620649 | O33: 0.8856119628 | P33: 0.75751706
A34: 30 | B34: 0 | C34: 1 | D34: 0 | E34: 1 | F34: 1 | G34: 1 | H34: 1 | I34: 1 | J34: 1 | K34: 1 | L34: 0.8 | M34: 0.8571428571 | N34: 0.8575098943 | O34: 0.7127697155 | P34: 0.8477803152
A35: 31 | B35: 0 | C35: 1 | D35: 0 | E35: 1 | F35: 1 | G35: 1 | H35: 1 | I35: 0 | J35: 1 | K35: 1 | L35: 0.7 | M35: 0.7142857143 | N35: 0.7634638955 | O35: 0.5863849917 | P35: 0.7138233904
A36: 32 | B36: 1 | C36: 0 | D36: 1 | E36: 1 | F36: 1 | G36: 0 | H36: 0 | I36: 0 | J36: 1 | K36: 1 | L36: 0.6 | M36: 0.5714285714 | N36: 0.6299657582 | O36: 0.6147799757 | P36: 0.6287712856
A37: 33 | B37: 1 | C37: 1 | D37: 0 | E37: 1 | F37: 0 | G37: 1 | H37: 1 | I37: 1 | J37: 1 | K37: 1 | L37: 0.8 | M37: 0.8571428571 | N37: =SUMPRODUCT($B37:$K37, EqualFirst) -> 0.8297620649 | O37: =SUMPRODUCT($B37:$K37, UserDef) -> 0.8856119628 | P37: =SUMPRODUCT($B37:$K37,DesaiShah) -> 0.75751706
A38: 34 | B38: 1 | C38: 1 | D38: 1 | E38: 1 | F38: 0 | G38: 1 | H38: 0 | I38: 1 | J38: 1 | K38: 1 | L38: 0.8 | M38: 0.7142857143 | N38: 0.7205388105 | O38: 0.7388311213 | P38: 0.6252782647
A39: 35 | B39: 1 | C39: 1 | D39: 1 | E39: 1 | F39: 1 | G39: 1 | H39: 1 | I39: 0 | J39: 1 | K39: 0 | L39: 0.8 | M39: 0.7142857143 | N39: 0.7663569241 | O39: 0.7798157618 | P39: 0.7500537651
A40: 36 | B40: 1 | C40: 0 | D40: 0 | E40: 1 | F40: 1 | G40: 0 | H40: 0 | I40: 0 | J40: 1 | K40: 1 | L40: 0.5 | M40: 0.5714285714 | N40: 0.6299657582 | O40: 0.6147799757 | P40: 0.6287712856
A41: 37 | B41: 1 | C41: 1 | D41: 0 | E41: 1 | F41: 1 | G41: 1 | H41: 1 | I41: 1 | J41: 1 | K41: 1 | L41: 0.9 | M41: 1 | N41: 1 | O41: 1 | P41: 1
A42: 38 | B42: 1 | C42: 1 | D42: 1 | E42: 0 | F42: 0 | G42: 1 | H42: 1 | I42: 0 | J42: 1 | K42: 1 | L42: 0.7 | M42: 0.7142857143 | N42: 0.7357160661 | O42: 0.759227239 | P42: 0.6235601352
A43: 39 | B43: 1 | C43: 1 | D43: 0 | E43: 1 | F43: 0 | G43: 1 | H43: 1 | I43: 1 | J43: 1 | K43: 1 | L43: 0.8 | M43: 0.8571428571 | N43: 0.8297620649 | O43: 0.8856119628 | P43: 0.75751706
A44: 40 | B44: 0 | C44: 1 | D44: 0 | E44: 1 | F44: 0 | G44: 1 | H44: 0 | I44: 1 | J44: 1 | K44: 1 | L44: 0.6 | M44: 0.5714285714 | N44: 0.5780487048 | O44: 0.4516008368 | P44: 0.4730585799
A45: 41 | B45: 0 | C45: 0 | D45: 1 | E45: 1 | F45: 0 | G45: 0 | H45: 0 | I45: 0 | J45: 0 | K45: 0 | L45: 0.2 | M45: 0 | N45: 0 | O45: 0 | P45: 0
A46: 42 | B46: 1 | C46: 1 | D46: 1 | E46: 1 | F46: 1 | G46: 1 | H46: 0 | I46: 1 | J46: 1 | K46: 1 | L46: 0.9 | M46: 0.8571428571 | N46: 0.8907767456 | O46: 0.8532191585 | P46: 0.8677612046
A47: 43 | B47: 0 | C47: 0 | D47: 1 | E47: 1 | F47: 0 | G47: 1 | H47: 0 | I47: 0 | J47: 0 | K47: 0 | L47: 0.3 | M47: 0 | N47: 0 | O47: 0 | P47: 0
A48: 44 | B48: 1 | C48: 0 | D48: 1 | E48: 1 | F48: 0 | G48: 1 | H48: 0 | I48: 0 | J48: 0 | K48: 0 | L48: 0.4 | M48: 0.1428571429 | N48: 0.1424901057 | O48: 0.2872302845 | P48: 0.1522196848
A49: 45 | B49: 1 | C49: 1 | D49: 0 | E49: 1 | F49: 0 | G49: 1 | H49: 0 | I49: 0 | J49: 1 | K49: 1 | L49: 0.6 | M49: 0.5714285714 | N49: 0.6264928118 | O49: 0.6124463975 | P49: 0.4913213399
A50: 46 | B50: 1 | C50: 0 | D50: 0 | E50: 1 | F50: 0 | G50: 1 | H50: 0 | I50: 0 | J50: 1 | K50: 1 | L50: 0.5 | M50: 0.4285714286 | N50: 0.4597278231 | O50: 0.5003919385 | P50: 0.3862883456
A51: 47 | B51: 0 | C51: 1 | D51: 0 | E51: 1 | F51: 0 | G51: 1 | H51: 1 | I51: 1 | J51: 1 | K51: 1 | L51: 0.7 | M51: 0.7142857143 | N51: 0.6872719592 | O51: 0.5983816783 | P51: 0.6052973753
A52: 48 | B52: 1 | C52: 1 | D52: 1 | E52: 1 | F52: 1 | G52: 1 | H52: 1 | I52: 0 | J52: 1 | K52: 1 | L52: 0.9 | M52: 0.8571428571 | N52: 0.9059540012 | O52: 0.8736152762 | P52: 0.8660430752
A53: 49 | B53: 1 | C53: 1 | D53: 0 | E53: 1 | F53: 1 | G53: 1 | H53: 0 | I53: 1 | J53: 1 | K53: 1 | L53: 0.8 | M53: 0.8571428571 | N53: 0.8907767456 | O53: 0.8532191585 | P53: 0.8677612046
A54: 50 | B54: 1 | C54: 1 | D54: 0 | E54: 1 | F54: 0 | G54: 1 | H54: 1 | I54: 0 | J54: 1 | K54: 1 | L54: 0.7 | M54: 0.7142857143 | N54: 0.7357160661 | O54: 0.759227239 | P54: 0.6235601352
A55: 51 | B55: 1 | C55: 1 | D55: 0 | E55: 0 | F55: 0 | G55: 1 | H55: 1 | I55: 1 | J55: 1 | K55: 1 | L55: 0.7 | M55: 0.8571428571 | N55: 0.8297620649 | O55: 0.8856119628 | P55: 0.75751706
A56: 52 | B56: 0 | C56: 1 | D56: 0 | E56: 1 | F56: 0 | G56: 1 | H56: 1 | I56: 1 | J56: 1 | K56: 1 | L56: 0.7 | M56: 0.7142857143 | N56: 0.6872719592 | O56: 0.5983816783 | P56: 0.6052973753
A57: 53 | B57: 0 | C57: 1 | D57: 0 | E57: 1 | F57: 0 | G57: 1 | H57: 1 | I57: 0 | J57: 0 | K57: 0 | L57: 0.4 | M57: 0.2857142857 | N57: 0.2759882431 | O57: 0.2588353005 | P57: 0.2372717896
A58: 54 | B58: 0 | C58: 1 | D58: 0 | E58: 1 | F58: 1 | G58: 1 | H58: 1 | I58: 1 | J58: 1 | K58: 1 | L58: 0.8 | M58: 0.8571428571 | N58: 0.8575098943 | O58: 0.7127697155 | P58: 0.8477803152
A59: 55 | B59: 0 | C59: 1 | D59: 0 | E59: 1 | F59: 1 | G59: 1 | H59: 0 | I59: 0 | J59: 1 | K59: 1 | L59: 0.6 | M59: 0.5714285714 | N59: 0.6542406411 | O59: 0.4396041502 | P59: 0.5815845951
A60: 56 | B60: 0 | C60: 1 | D60: 0 | E60: 1 | F60: 0 | G60: 1 | H60: 0 | I60: 1 | J60: 0 | K60: 0 | L60: 0.4 | M60: 0.2857142857 | N60: 0.2608109874 | O60: 0.2384391828 | P60: 0.238989919
A61: 57 | B61: 1 | C61: 1 | D61: 1 | E61: 1 | F61: 1 | G61: 1 | H61: 1 | I61: 1 | J61: 1 | K61: 1 | L61: 1 | M61: 1 | N61: 1 | O61: 1 | P61: 1
A62: 58 | B62: 0 | C62: 1 | D62: 0 | E62: 1 | F62: 0 | G62: 1 | H62: 1 | I62: 0 | J62: 1 | K62: 1 | L62: 0.6 | M62: 0.5714285714 | N62: 0.5932259604 | O62: 0.4719969545 | P62: 0.4713404505
A63: 59 | B63: 1 | C63: 1 | D63: 0 | E63: 1 | F63: 0 | G63: 0 | H63: 0 | I63: 0 | J63: 0 | K63: 0 | L63: 0.3 | M63: 0.2857142857 | N63: 0.3092550944 | O63: 0.3992847436 | P63: 0.257252679
A64: 60 | B64: 0 | C64: 1 | D64: 1 | E64: 1 | F64: 0 | G64: 1 | H64: 0 | I64: 0 | J64: 1 | K64: 1 | L64: 0.6 | M64: 0.4285714286 | N64: 0.484002706 | O64: 0.325216113 | P64: 0.3391016551
A65: 61 | B65: 1 | C65: 1 | D65: 1 | E65: 1 | F65: 1 | G65: 1 | H65: 0 | I65: 1 | J65: 1 | K65: 1 | L65: 0.9 | M65: 0.8571428571 | N65: 0.8907767456 | O65: 0.8532191585 | P65: 0.8677612046
A66: 62 | B66: 0 | C66: 0 | D66: 0 | E66: 0 | F66: 1 | G66: 1 | H66: 0 | I66: 0 | J66: 1 | K66: 1 | L66: 0.4 | M66: 0.4285714286 | N66: 0.4874756524 | O66: 0.3275496911 | P66: 0.4765516009
A67: 63 | B67: 1 | C67: 1 | D67: 0 | E67: 1 | F67: 0 | G67: 1 | H67: 1 | I67: 1 | J67: 1 | K67: 1 | L67: 0.8 | M67: 0.8571428571 | N67: 0.8297620649 | O67: 0.8856119628 | P67: 0.75751706
A68: 64 | B68: 1 | C68: 1 | D68: 1 | E68: 1 | F68: 1 | G68: 1 | H68: 1 | I68: 0 | J68: 0 | K68: 0 | L68: 0.7 | M68: 0.5714285714 | N68: 0.5887162839 | O68: 0.6604536223 | P68: 0.6319744143
A69: 65 | B69: 0 | C69: 1 | D69: 0 | E69: 1 | F69: 0 | G69: 1 | H69: 0 | I69: 0 | J69: 1 | K69: 1 | L69: 0.5 | M69: 0.4285714286 | N69: =SUMPRODUCT($B69:$K69, EqualFirst) -> 0.484002706 | O69: =SUMPRODUCT($B69:$K69, UserDef) -> 0.325216113 | P69: =SUMPRODUCT($B69:$K69,DesaiShah) -> 0.3391016551
A70: 66 | B70: 0 | C70: 0 | D70: 0 | E70: 1 | F70: 1 | G70: 1 | H70: 1 | I70: 0 | J70: 0 | K70: 0 | L70: =AVERAGE($B70:$K70) -> 0.4 | M70: =AVERAGE(B70:C70,F70,H70:K70) -> 0.2857142857 | N70: 0.2794611895 | O70: 0.2611688787 | P70: 0.3747217353
A71: 67 | B71: 0 | C71: 1 | D71: 1 | E71: 1 | F71: 0 | G71: 1 | H71: 0 | I71: 0 | J71: 1 | K71: 1 | L71: 0.6 | M71: 0.4285714286 | N71: 0.484002706 | O71: 0.325216113 | P71: 0.3391016551
A72: 68 | B72: 0 | C72: 0 | D72: 1 | E72: 1 | F72: 0 | G72: 1 | H72: 1 | I72: 1 | J72: 1 | K72: 1 | L72: 0.7 | M72: 0.5714285714 | N72: 0.5205069705 | O72: 0.4863272192 | P72: 0.500264381
A73: 69 | B73: 0 | C73: 1 | D73: 0 | E73: 1 | F73: 1 | G73: 1 | H73: 1 | I73: 0 | J73: 1 | K73: 1 | L73: 0.7 | M73: 0.7142857143 | N73: 0.7634638955 | O73: 0.5863849917 | P73: 0.7138233904
A74: 70 | B74: 0 | C74: 1 | D74: 1 | E74: 1 | F74: 1 | G74: 1 | H74: 0 | I74: 0 | J74: 1 | K74: 1 | L74: 0.7 | M74: 0.5714285714 | N74: 0.6542406411 | O74: 0.4396041502 | P74: 0.5815845951
A75: 71 | B75: 0 | C75: 1 | D75: 1 | E75: 1 | F75: 0 | G75: 1 | H75: 0 | I75: 0 | J75: 0 | K75: 0 | L75: 0.4 | M75: 0.1428571429 | N75: 0.1667649887 | O75: 0.1120544591 | P75: 0.1050329942
A76: 72 | B76: 1 | C76: 1 | D76: 1 | E76: 0 | F76: 1 | G76: 1 | H76: 0 | I76: 1 | J76: 1 | K76: 0 | L76: 0.7 | M76: 0.7142857143 | N76: 0.7511796685 | O76: 0.7594196441 | P76: 0.7517718946
A77: 73 | B77: 0 | C77: 1 | D77: 0 | E77: 1 | F77: 0 | G77: 1 | H77: 0 | I77: 0 | J77: 0 | K77: 0 | L77: 0.3 | M77: 0.1428571429 | N77: 0.1667649887 | O77: 0.1120544591 | P77: 0.1050329942
A78: 74 | B78: 1 | C78: 1 | D78: 1 | E78: 1 | F78: 1 | G78: 1 | H78: 1 | I78: 0 | J78: 1 | K78: 1 | L78: 0.9 | M78: 0.8571428571 | N78: 0.9059540012 | O78: 0.8736152762 | P78: 0.8660430752
A79: 75 | B79: 1 | C79: 1 | D79: 0 | E79: 1 | F79: 0 | G79: 1 | H79: 1 | I79: 1 | J79: 0 | K79: 0 | L79: 0.6 | M79: 0.5714285714 | N79: 0.5125243476 | O79: 0.6724503089 | P79: 0.5234483991
A80: 76 | B80: 0 | C80: 1 | D80: 0 | E80: 1 | F80: 0 | G80: 1 | H80: 1 | I80: 1 | J80: 1 | K80: 1 | L80: 0.7 | M80: 0.7142857143 | N80: 0.6872719592 | O80: 0.5983816783 | P80: 0.6052973753
A81: 77 | B81: 1 | C81: 1 | D81: 1 | E81: 1 | F81: 0 | G81: 1 | H81: 1 | I81: 1 | J81: 1 | K81: 1 | L81: 0.9 | M81: 0.8571428571 | N81: 0.8297620649 | O81: 0.8856119628 | P81: 0.75751706
A82: 78 | B82: 0 | C82: 1 | D82: 0 | E82: 1 | F82: 0 | G82: 0 | H82: 0 | I82: 0 | J82: 1 | K82: 1 | L82: 0.4 | M82: 0.4285714286 | N82: 0.484002706 | O82: 0.325216113 | P82: 0.3391016551
A83: 79 | B83: 1 | C83: 1 | D83: 0 | E83: 1 | F83: 1 | G83: 1 | H83: 1 | I83: 1 | J83: 1 | K83: 1 | L83: 0.9 | M83: 1 | N83: 1 | O83: 1 | P83: 1
A84: 80 | B84: 0 | C84: 1 | D84: 1 | E84: 1 | F84: 1 | G84: 1 | H84: 1 | I84: 0 | J84: 0 | K84: 0 | L84: 0.6 | M84: 0.4285714286 | N84: 0.4462261782 | O84: 0.3732233377 | P84: 0.4797547296
A85: 81 | B85: 0 | C85: 1 | D85: 0 | E85: 1 | F85: 1 | G85: 1 | H85: 1 | I85: 0 | J85: 1 | K85: 1 | L85: 0.7 | M85: 0.7142857143 | N85: 0.7634638955 | O85: 0.5863849917 | P85: 0.7138233904
A86: 82 | B86: 1 | C86: 0 | D86: 1 | E86: 1 | F86: 0 | G86: 1 | H86: 0 | I86: 0 | J86: 1 | K86: 1 | L86: 0.6 | M86: 0.4285714286 | N86: 0.4597278231 | O86: 0.5003919385 | P86: 0.3862883456
A87: 83 | B87: 1 | C87: 0 | D87: 1 | E87: 1 | F87: 0 | G87: 1 | H87: 1 | I87: 0 | J87: 1 | K87: 1 | L87: 0.7 | M87: 0.5714285714 | N87: 0.5689510775 | O87: 0.64717278 | P87: 0.518527141
A88: 84 | B88: 1 | C88: 0 | D88: 0 | E88: 0 | F88: 0 | G88: 1 | H88: 0 | I88: 0 | J88: 1 | K88: 0 | L88: 0.3 | M88: 0.2857142857 | N88: 0.320130746 | O88: 0.4065924241 | P88: 0.2702990356
A89: 85 | B89: 1 | C89: 0 | D89: 1 | E89: 1 | F89: 0 | G89: 0 | H89: 0 | I89: 1 | J89: 0 | K89: 0 | L89: 0.4 | M89: 0.2857142857 | N89: 0.2365361045 | O89: 0.4136150083 | P89: 0.2861766096
A90: 86 | B90: 1 | C90: 1 | D90: 0 | E90: 1 | F90: 1 | G90: 1 | H90: 1 | I90: 1 | J90: 1 | K90: 1 | L90: 0.9 | M90: 1 | N90: 1 | O90: 1 | P90: 1
A91: 87 | B91: 0 | C91: 1 | D91: 1 | E91: 0 | F91: 1 | G91: 1 | H91: 0 | I91: 1 | J91: 1 | K91: 1 | L91: 0.7 | M91: 0.7142857143 | N91: 0.7482866399 | O91: 0.565988874 | P91: 0.7155415199
A92: 88 | B92: 1 | C92: 1 | D92: 1 | E92: 1 | F92: 0 | G92: 1 | H92: 1 | I92: 1 | J92: 1 | K92: 1 | L92: 0.9 | M92: 0.8571428571 | N92: 0.8297620649 | O92: 0.8856119628 | P92: 0.75751706
A93: 89 | B93: 0 | C93: 1 | D93: 1 | E93: 1 | F93: 1 | G93: 1 | H93: 0 | I93: 1 | J93: 1 | K93: 1 | L93: 0.8 | M93: 0.7142857143 | N93: 0.7482866399 | O93: 0.565988874 | P93: 0.7155415199
A94: 90 | B94: 1 | C94: 1 | D94: 1 | E94: 1 | F94: 1 | G94: 1 | H94: 1 | I94: 0 | J94: 1 | K94: 0 | L94: 0.8 | M94: 0.7142857143 | N94: 0.7663569241 | O94: 0.7798157618 | P94: 0.7500537651
A95: 91 | B95: 1 | C95: 0 | D95: 1 | E95: 1 | F95: 0 | G95: 1 | H95: 1 | I95: 1 | J95: 1 | K95: 1 | L95: 0.8 | M95: 0.7142857143 | N95: 0.6629970762 | O95: 0.7735575038 | P95: 0.6524840658
A96: 92 | B96: 1 | C96: 1 | D96: 1 | E96: 1 | F96: 1 | G96: 1 | H96: 0 | I96: 0 | J96: 0 | K96: 0 | L96: 0.6 | M96: 0.4285714286 | N96: 0.4794930295 | O96: 0.5136727808 | P96: 0.499735619
A97: 93 | B97: 1 | C97: 0 | D97: 0 | E97: 1 | F97: 1 | G97: 1 | H97: 1 | I97: 1 | J97: 1 | K97: 1 | L97: 0.8 | M97: 0.8571428571 | N97: 0.8332350113 | O97: 0.8879455409 | P97: 0.8949670058
A98: 94 | B98: 0 | C98: 1 | D98: 1 | E98: 1 | F98: 1 | G98: 0 | H98: 0 | I98: 0 | J98: 1 | K98: 1 | L98: 0.6 | M98: 0.5714285714 | N98: 0.6542406411 | O98: 0.4396041502 | P98: 0.5815845951
A99: 95 | B99: 0 | C99: 0 | D99: 1 | E99: 1 | F99: 0 | G99: 0 | H99: 0 | I99: 0 | J99: 0 | K99: 0 | L99: 0.2 | M99: 0 | N99: 0 | O99: 0 | P99: 0
A100: 96 | B100: 0 | C100: 0 | D100: 1 | E100: 1 | F100: 0 | G100: 0 | H100: 0 | I100: 0 | J100: 0 | K100: 0 | L100: 0.2 | M100: 0 | N100: 0 | O100: 0 | P100: 0
A101: 97 | B101: 1 | C101: 1 | D101: 1 | E101: 1 | F101: 0 | G101: 1 | H101: 1 | I101: 1 | J101: 0 | K101: 0 | L101: 0.7 | M101: 0.5714285714 | N101: 0.5125243476 | O101: 0.6724503089 | P101: 0.5234483991
A102: 98 | B102: 1 | C102: 0 | D102: 0 | E102: 1 | F102: 0 | G102: 1 | H102: 0 | I102: 0 | J102: 1 | K102: 1 | L102: 0.5 | M102: 0.4285714286 | N102: 0.4597278231 | O102: 0.5003919385 | P102: 0.3862883456
A103: 99 | B103: 0 | C103: 1 | D103: 1 | E103: 1 | F103: 0 | G103: 1 | H103: 0 | I103: 0 | J103: 0 | K103: 0 | L103: 0.4 | M103: 0.1428571429 | N103: 0.1667649887 | O103: 0.1120544591 | P103: 0.1050329942
A104: 100 | B104: 0 | C104: 1 | D104: 0 | E104: 1 | F104: 0 | G104: 1 | H104: 0 | I104: 0 | J104: 1 | K104: 1 | L104: 0.5 | M104: 0.4285714286 | N104: 0.484002706 | O104: 0.325216113 | P104: 0.3391016551

Sheet Indices_compared
A2: Index | C2: Mean | D2: SD | E2: Information value (CoV) | F2: Correlations:
E3: = SD / Mean | F3: Index1a | G3: Index1b | H3: Index2a | I3: Index2b | J3: Index2c
A4: Index1a | B4: Count-based, no exclusions | C4: =AVERAGE(INDIRECT($A4)) -> 0.6257777778 | D4: =_xlfn.STDEV.S(INDIRECT($A4)) -> 0.1996247883 | E4: =D4/C4 -> 0.3190026802 | F4: =CORREL(INDIRECT($A4),INDIRECT(F$3)) -> 1 | G4: =CORREL(INDIRECT($A4),INDIRECT(G$3)) -> 0.9540449361 | H4: 0.9389500002 | I4: 0.9176788092 | J4: 0.9316414368
A5: Index1b | B5: Some items excluded, no BV | C5: 0.564047619 | D5: 0.2716958381 | E5: 0.48168954 | F5: 0.9540449361 | G5: 1 | H5: 0.9871829494 | I5: 0.9553648818 | J5: 0.9772009316
A6: Index2a | B6: Equal first weight on all items | C6: 0.5763126793 | D6: 0.2664999979 | E6: 0.4624225832 | F6: 0.9389500002 | G6: 0.9871829494 | H6: 1 | I6: 0.9353811719 | J6: 0.9765646972
A7: Index2b | B7: User-defined weights | C7: 0.5537980086 | D7: 0.2749658252 | E7: 0.4965092343 | F7: 0.9176788092 | G7: 0.9553648818 | H7: 0.9353811719 | I7: 1 | J7: 0.9486548568
A8: Index2c | B8: Emphasize social justice | C8: 0.5351277222 | D8: 0.2683872059 | E8: 0.501538595 | F8: 0.9316414368 | G8: 0.9772009316 | H8: 0.9765646972 | I8: 0.9486548568 | J8: 1
C10: Distributions: | E10: Index values | F10: Frequencies of occurrence
E11: Upper limit of interval | F11: Index1a | G11: Index1b | H11: Index2a | I11: Index2b | J11: Index2c
E12: 0 | F12: =FREQUENCY(INDIRECT(F$11), $E$12:$E$21) / 100 -> 0 | G12: =FREQUENCY(INDIRECT(G$11), $E$12:$E$21) / 100 -> 0.07 | H12: =FREQUENCY(INDIRECT(H$11), $E$12:$E$21) / 100 -> 0.07 | I12: =FREQUENCY(INDIRECT(I$11), $E$12:$E$21) / 100 -> 0.07 | J12: =FREQUENCY(INDIRECT(J$11), $E$12:$E$21) / 100 -> 0.07
E13: 0.1 | F13: 0 | G13: 0 | H13: 0 | I13: 0 | J13: 0
E14: 0.2 | F14: 0.05 | G14: 0.05 | H14: 0.05 | I14: 0.04 | J14: 0.05
E15: 0.3 | F15: 0.05 | G15: 0.09 | H15: 0.05 | I15: 0.04 | J15: 0.07
E16: 0.4 | F16: 0.12 | G16: 0 | H16: 0.04 | I16: 0.14 | J16: 0.14
E17: 0.5 | F17: 0.1 | G17: 0.18 | H17: 0.18 | I17: 0.12 | J17: 0.12
E18: 0.6 | F18: 0.18 | G18: 0.18 | H18: 0.09 | I18: 0.15 | J18: 0.09
E19: 0.7 | F19: 0.2 | G19: 0 | H19: 0.16 | I19: 0.1 | J19: 0.14
E20: 0.8 | F20: 0.17 | G20: 0.18 | H20: 0.12 | I20: 0.12 | J20: 0.15
E21: 0.9 | F21: 0.11 | G21: 0.19 | H21: 0.17 | I21: 0.15 | J21: 0.12
E22: 1 | F22: 0.02 | G22: 0.06 | H22: 0.07 | I22: 0.07 | J22: 0.05
E23: Total | F23: =SUM(F12:F22) -> 1 | G23: =SUM(G12:G22) -> 1 | H23: 1 | I23: 1 | J23: 1

Sheet Practicalities
A1: The practical steps to make this work:
A2: To access the user-written function for tetrachoric correlations:
B3: Option 1: | C3: Make a copy of this workbook and copy-paste your binary indicators (plus a record ID variable) into a new sheet. In yet another new sheet, calculate the correlation table as described below.
B4: Option 2: Keep this workbook open while continuing to work in your current data-cum-analysis workbook. Access the Tetra function via user-defined functions, use it, then replace the calculated coefficients with their values, to be independent of the formulas.
B5: Option 3 (recommended): Save your data-cum-analysis workbook with the macro-enabled extension .xlsm. Press Alt+F11 to access the VBA window and insert a new module. Copy the Tetra function code to your module. Save. Proceed in your workbook as demonstrated in this one.
B6: Make sure to enable all macros under the tab "Developer" - "Code" - "Macro security".
A8: To calculate the tetrachoric correlation table:
B9: In the table that holds the selected binary indicators, give them short variable names, and use these names to create a named range of each data column.
B10: [If the variable names end in numeric characters, e.g. var1, var2, etc., Excel will append an underscore to the range names, e.g. var1_, var2_, etc.]
C11: To see this, open the drop down in the cell address bar above and click on one of the names, e.g. var1_ .
B12: Open a new sheet for the calculation of the correlation table. Name rows and columns with the names of the data column ranges.
C13: As in sheet "Betti_Verma_Weights", row 3 - 13.
B14: In each cell that is to receive the correlation coefficient for the two indicators shown in the row and column headings,
C15: call the user-defined function by typing =Tetra() and
C16: access the corresponding data columns via the function INDIRECT and with mixed-type cell references.
D17: As in sheet "Betti_Verma_Weights": =Tetra(INDIRECT(RC2), INDIRECT(R3C))
B18: If your dataset is large and final, you may want to replace the formulas with their values only.
B19: Note: Our code tolerates missing values in the indicators. It calculates the coefficients pairwise, not casewise. If missings are few, this is irrelevant.
A21: To calculate the weights and scores:
B22: Make sure all indicators are oriented in the same substantive direction, with "1" denoting lackings, hazards, etc., and "0" denoting the preferred state.
B23: Follow the pattern, formulas and formats from sheets "Betti_Verma_weights", "Betti-Verma_scores" and "Indices_compared".
B24: We demonstrate three analytic variants of the weights. If you decide on a suitable one for your purposes right away, no need to compute the others.
B25: A frequency table of the scores, with appropriate intervals, can by obtained with the function FREQUENCY.
C26: As in sheet "Indices_compared". FREQUENCY is a multi-cell array function and has to be entered by pressing Shift-Ctrl-Enter.
C27: The intervals (which Excel calls "bins") are passed to the function by their upper bounds. For n bounds, select the first n-1, and select all n target cells.
D28: Example from sheet "Indices compared":
E29: 1. Select the range R12C6:R22C6 (11 cells); type "=FREQUENCY(" in the formula bar (without the inverted quotes).
E30: 2. The final formula is "=FREQUENCY(INDIRECT(R11C), R12C5:R21C5) / 100", where
F31: INDIRECT(R11C) references the data range, and
F32: R12C5:R21C is the bins_range (the upper bounds) with only 10 cells.
F33: "/ 100" is ok here (we have 100 observations in the data table), but this has to be adjusted to your actual sample size.
